fUST/lending_fUST_20250916
["ID","MTS","AMOUNT","RATE_DAILY","PERIOD"]
[385746984,1758004245201,-5000.0,0.00022736,2]
[385746985,1758004245211,-844.19,0.00022739,3]
[385746986,1758004245221,-435.63057039,0.00022739,3]
[385746987,1758004245230,-230.09351721,0.00022739,3]
[385746988,1758004245239,-480.0,0.00022739,3]
[385746989,1758004245248,-480.0,0.00022739,3]
[385746990,1758004245258,-155.787215,0.00022739,7]
[385746991,1758004245266,-480.0,0.00022739,3]
[385746992,1758004245276,-480.0,0.00022739,3]
[385746993,1758004245285,-480.0,0.00022739,3]
[385746994,1758004245294,-480.0,0.00022739,3]
[385746995,1758004245303,-480.0,0.00022739,3]
[385746996,1758004245312,-480.0,0.00022739,3]
[385746997,1758004245321,-480.0,0.00022739,3]
[385746998,1758004245331,-480.0,0.00022739,3]
[385746999,1758004245340,-480.0,0.00022739,3]
[385747000,1758004245349,-480.0,0.00022739,3]
[385747001,1758004245359,-480.0,0.00022739,3]
[385747002,1758004245368,-480.0,0.00022739,3]
[385747003,1758004245377,-480.0,0.00022739,3]
[385747004,1758004245385,-274.97982665,0.00022739,3]
[385747005,1758004245395,-480.0,0.00022739,3]
[385747006,1758004245404,-480.0,0.00022739,3]
[385747007,1758004245413,-663.1,0.00022739,3]
[385747008,1758004245422,-480.0,0.00022739,3]
[385747009,1758004245432,-480.0,0.00022739,3]
[385747010,1758004245441,-480.0,0.00022739,3]
[385747011,1758004245450,-618.14803816,0.00022739,3]
[385747012,1758004245459,-586.21496642,0.00022739,3]
[385747013,1758004245469,-500.96775839,0.00022739,3]
[385747014,1758004245478,-480.0,0.00022739,3]
[385747015,1758004245487,-480.0,0.00022739,3]
[385747016,1758004245496,-663.19,0.00022739,3]
[385747017,1758004245506,-4071.39,0.00022739,3]
[385747018,1758004245515,-152.37362185,0.00022739,3]
[385747019,1758004245525,-480.0,0.00022739,3]
[385747020,1758004245534,-480.0,0.00022739,3]
[385747021,1758004245544,-480.0,0.00022739,3]
[385747022,1758004245553,-605.69,0.00022739,3]
[385747023,1758004245562,-480.0,0.00022739,3]
[385747024,1758004245571,-480.0,0.00022739,3]
[385747025,1758004245580,-517.37841268,0.00022739,3]
[385747026,1758004245589,-480.0,0.00022739,3]
[385747027,1758004245598,-480.0,0.00022739,3]
[385747028,1758004245607,-480.0,0.00022739,3]
[385747029,1758004245617,-1575.66,0.00022739,3]
[385747030,1758004245626,-480.0,0.00022739,3]
[385747031,1758004245635,-480.0,0.00022739,3]
[385747032,1758004245645,-480.0,0.00022739,3]
[385747033,1758004245654,-480.0,0.00022739,3]
[385747034,1758004245663,-764.21,0.00022739,3]
[385747035,1758004245673,-550.19069414,0.00022739,3]
[385747036,1758004245682,-151.4407665,0.00022739,3]
[385747037,1758004245691,-500.0,0.00022773,2]
[385747038,1758004245700,-500.0,0.00022906,2]
[385747039,1758004245710,-308.09935344,0.00022912,2]
[385747040,1758004245719,-1207.24639252,0.00022958,2]
[385747041,1758004245728,-990.18785629,0.00022968,2]
[385747043,1758004245737,-1500.0,0.00022968,2]
[385747044,1758004245746,-1500.0,0.00022968,2]
[385747045,1758004245755,-1500.0,0.00022968,2]
[385747046,1758004245764,-1500.0,0.00022968,2]
[385747047,1758004245774,-1500.0,0.00022968,2]
[385747048,1758004245783,-1500.0,0.00022968,2]
[385747049,1758004245792,-151.0,0.0002299,7]
[385747050,1758004245801,-449.208965,0.0002299,7]
[385747051,1758004245811,-449.208965,0.0002299,7]
[385747052,1758004245819,-449.208965,0.0002299,7]
[385747054,1758004245829,-449.208965,0.0002299,7]
[385747056,1758004245837,-847.61663983,0.00023,3]
[385747058,1758004245846,-160.0,0.00023,3]
[385747059,1758004245856,-160.0,0.00023,2]
[385747060,1758004245865,-5000.0,0.00023012,2]
[385747062,1758004245874,-844.19,0.00023013,3]
[385747063,1758004245884,-480.0,0.00023013,3]
[385747064,1758004245892,-450.98287705,0.00023013,3]
[385747065,1758004245902,-226.91457217,0.00023013,3]
[385747066,1758004245911,-480.0,0.00023013,3]
[385747067,1758004245920,-480.0,0.00023013,3]
[385747068,1758004245929,-480.0,0.00023013,3]
[385747069,1758004245939,-460.92414144,0.00023013,3]
[385747070,1758004245948,-480.0,0.00023013,3]
[385747071,1758004245956,-606.43,0.00023013,3]
[385747072,1758004245965,-480.0,0.00023013,3]
[385747073,1758004245975,-480.0,0.00023013,3]
[385747074,1758004245984,-480.0,0.00023013,3]
[385747075,1758004245993,-480.0,0.00023013,3]
[385747077,1758004246002,-175.29235482,0.00023013,3]
[385747078,1758004246011,-480.0,0.00023013,3]
[385747080,1758004246021,-480.0,0.00023013,3]
[385747082,1758004246030,-405.7,0.00023013,3]
[385747084,1758004246039,-663.1,0.00023013,3]
[385747086,1758004246048,-480.0,0.00023013,3]
[385747088,1758004246058,-222.28263641,0.00023013,3]
[385747090,1758004246073,-480.0,0.00023013,3]
[385747092,1758004246082,-480.0,0.00023013,3]
[385747094,1758004246091,-480.0,0.00023013,3]
[385747096,1758004246101,-663.19,0.00023013,3]
[385747098,1758004246110,-4071.39,0.00023013,3]
[385747100,1758004246119,-287.93,0.00023013,3]
[385747102,1758004246129,-480.0,0.00023013,3]
[385747104,1758004246138,-480.0,0.00023013,3]
[385747106,1758004246147,-605.69,0.00023013,3]
[385747108,1758004246156,-480.0,0.00023013,3]
[385747110,1758004246165,-629.95644982,0.00023013,3]
[385747112,1758004246174,-480.0,0.00023013,3]
[385747114,1758004246183,-480.0,0.00023013,3]
[385747116,1758004246192,-480.0,0.00023013,3]
[385747117,1758004246201,-1575.66,0.00023013,3]
[385747119,1758004246210,-480.0,0.00023013,3]
[385747121,1758004246219,-178.1284,0.00023013,7]
[385747123,1758004246229,-480.0,0.00023013,3]
[385747125,1758004246238,-221.87991446,0.00023013,3]
[385747128,1758004246247,-480.0,0.00023013,3]
[385747129,1758004246256,-764.21,0.00023013,3]
[385747131,1758004246266,-157.721584,0.00023068,7]
[385747133,1758004246275,-151.0,0.00023068,7]
[385747135,1758004246284,-151.0,0.00023068,7]
[385747137,1758004246294,-151.0,0.00023068,7]
[385747139,1758004246303,-151.0,0.00023068,7]
[385747141,1758004246312,-151.0,0.00023068,7]
[385747143,1758004246321,-521.50871399,0.00023068,2]
[385747145,1758004246330,-1500.0,0.00023068,2]
[385747147,1758004246339,-1375.31678154,0.00023068,2]
[385747149,1758004246348,-1003.35921457,0.00023068,2]
[385747151,1758004246357,-1500.0,0.00023068,2]
[385747153,1758004246366,-1500.0,0.00023068,2]
[385747154,1758004246375,-1500.0,0.00023068,2]
[385747156,1758004246384,-1500.0,0.00023068,2]
[385747158,1758004246393,-853.509972,0.00023068,2]
[385747160,1758004246402,-1500.0,0.00023068,2]
[385747162,1758004246412,-1244.99550726,0.00023068,2]
[385747165,1758004246421,-444.31084818,0.00023068,2]
[385747167,1758004246431,-501.72701477,0.00023068,2]
[385747169,1758004246440,-1501.82102218,0.00023068,2]
[385747170,1758004246449,-178.58858412,0.00023068,2]
[385747172,1758004246458,-150.0,0.00023073,2]
[385747175,1758004246469,-800.0,0.0002313,2]
[385747177,1758004246479,-160.0,0.0002314,2]
[385747179,1758004246489,-1281.04191308,0.00023168,2]
[385747180,1758004246498,-1500.0,0.00023168,2]
[385747182,1758004246507,-151.0,0.00023268,7]
[385747184,1758004246517,-151.0,0.00023268,7]
[385747186,1758004246526,-151.0,0.00023268,7]
[385747188,1758004246537,-228.049257,0.00023268,7]
[385747190,1758004246547,-151.0,0.00023268,7]
[385747192,1758004246556,-151.0,0.00023268,7]
[385747194,1758004246565,-4000.0,0.00023284,3]
[385747196,1758004246574,-151.0,0.00023285,7]
[385747198,1758004246583,-152.728998,0.00023285,7]
[385747200,1758004246592,-844.19,0.00023287,3]
[385747202,1758004246601,-351.65494441,0.00023287,3]
[385747204,1758004246610,-480.0,0.00023287,3]
[385747206,1758004246619,-480.0,0.00023287,3]
[385747208,1758004246628,-619.98921655,0.00023287,3]
[385747210,1758004246636,-480.0,0.00023287,3]
[385747212,1758004246645,-247.09,0.00023287,3]
[385747214,1758004246654,-596.55,0.00023287,3]
[385747216,1758004246663,-513.07,0.00023287,3]
[385747218,1758004246672,-336.38,0.00023287,3]
[385747220,1758004246682,-151.0,0.00023287,7]
[385747222,1758004246691,-189.375256,0.00023287,7]
[385747224,1758004246700,-480.0,0.00023287,3]
[385747226,1758004246709,-480.0,0.00023287,3]
[385747228,1758004246718,-663.1,0.00023287,3]
[385747230,1758004246727,-480.0,0.00023287,3]
[385747232,1758004246736,-480.0,0.00023287,3]
[385747234,1758004246745,-480.0,0.00023287,3]
[385747236,1758004246754,-480.0,0.00023287,3]
[385747238,1758004246763,-663.19,0.00023287,3]
[385747240,1758004246773,-4071.39,0.00023287,3]
[385747242,1758004246782,-480.0,0.00023287,3]
[385747244,1758004246791,-480.0,0.00023287,3]
[385747246,1758004246800,-605.69,0.00023287,3]
[385747248,1758004246809,-480.0,0.00023287,3]
[385747250,1758004246818,-330.40217785,0.00023287,3]
[385747252,1758004246827,-480.0,0.00023287,3]
[385747254,1758004246836,-480.0,0.00023287,3]
[385747256,1758004246846,-1575.66,0.00023287,3]
[385747265,1758004246855,-480.0,0.00023287,3]
[385747267,1758004246936,-480.0,0.00023287,3]
[385747269,1758004246945,-1379.04,0.00023287,2]
[385747271,1758004246954,-480.0,0.00023287,3]
[385747273,1758004246964,-764.21,0.00023287,3]
[385747275,1758004246974,-800.0,0.00023297,2]
[385747277,1758004246983,-1000.76270565,0.00023321,2]
[385747279,1758004246994,-308.09935344,0.0002346,2]
[385747281,1758004247003,-2000.0,0.00023499,3]
[385747283,1758004247012,-280.73986565,0.000235,2]
[385747285,1758004247021,-151.0,0.00023516,7]
[385747287,1758004247030,-21.5809141,0.00023516,7]
[385747300,1758004247144,-266.6312699,0.00023516,7]
[385747302,1758004247156,-531.89502363,0.00023516,2]
[385747304,1758004247167,-717.12731951,0.00023516,2]
[385747307,1758004247178,-750.97765686,0.00023516,2]
[385747309,1758004247187,-826.39636598,0.00023516,2]
[385747311,1758004247199,-1173.60363402,0.00023516,2]
[385747313,1758004247208,-1021.40567582,0.00023516,2]
[385747315,1758004247217,-2000.0,0.00023516,2]
[385747317,1758004247227,-1000.0,0.00023516,2]
[385747319,1758004247236,-2000.0,0.00023516,2]
[385747321,1758004247245,-844.19,0.00023561,3]
[385747323,1758004247254,-480.0,0.00023561,3]
[385747325,1758004247263,-554.66,0.00023561,3]
[385747327,1758004247272,-544.45613658,0.00023561,3]
[385747329,1758004247281,-480.0,0.00023561,3]
[385747331,1758004247290,-480.0,0.00023561,3]
[385747333,1758004247300,-663.1,0.00023561,3]
[385747335,1758004247309,-480.0,0.00023561,3]
[385747337,1758004247318,-480.0,0.00023561,3]
[385747339,1758004247327,-480.0,0.00023561,3]
[385747341,1758004247336,-480.0,0.00023561,3]
[385747343,1758004247345,-663.19,0.00023561,3]
[385747344,1758004247355,-4071.39,0.00023561,3]
[385747346,1758004247364,-480.0,0.00023561,3]
[385747348,1758004247373,-480.0,0.00023561,3]
[385747350,1758004247382,-605.69,0.00023561,3]
[385747352,1758004247391,-480.0,0.00023561,3]
[385747353,1758004247400,-480.0,0.00023561,3]
[385747354,1758004247409,-480.0,0.00023561,3]
[385747355,1758004247418,-1575.66,0.00023561,3]
[385747356,1758004247427,-480.0,0.00023561,3]
[385747357,1758004247436,-284.17946906,0.00023561,3]
[385747358,1758004247449,-195.82053094,0.00023561,3]
[385747360,1758004247459,-480.0,0.00023561,3]
[385747362,1758004247469,-764.21,0.00023561,3]
[385747364,1758004247478,-154.5,0.00023572,3]
[385747366,1758004247487,-800.0,0.00023592,2]
[385747368,1758004247497,-2000.0,0.00023616,2]
[385747370,1758004247506,-504.6843169,0.00023616,2]
[385747372,1758004247522,-1654.37141137,0.00023616,2]
[385747385,1758004247809,-124.36338019,0.00023616,2]
[385747386,1758004248028,-0.00371264,0.00021912,2]
[385747387,1758004248043,-499.99628736,0.00021912,2]
[385747388,1758004248052,-500.0,0.00021912,2]
[385747389,1758004248062,-500.0,0.00021912,2]
[385747390,1758004248074,-500.0,0.00021912,2]
[385747391,1758004248083,-500.0,0.00021912,2]
[385747392,1758004248093,-138.66073699,0.00021912,2]
[385747393,1758004248267,-361.33926301,0.00021912,2]
[385747394,1758004248277,-92.6625543,0.00021912,2]
[385747395,1758004300940,152.770812,0.00027959,30]
[385747396,1758004301428,-2762.95442684,0.00021266,2]
[385747397,1758004301561,-5000.0,0.00021481,2]
[385747398,1758004311465,-917.21432181,0.00021698,2]
[385747399,1758004311500,-432.80669595,0.00021816,2]
[385747400,1758004311532,-230.61599698,0.00021816,2]
[385747401,1758004311560,-500.0,0.00021816,2]
[385747402,1758004311589,-500.0,0.00021816,2]
[385747403,1758004311618,-500.0,0.00021816,2]
[385747404,1758004311648,-500.0,0.00021816,2]
[385747405,1758004311680,-500.0,0.00021816,2]
[385747406,1758004311710,-500.0,0.00021816,2]
[385747407,1758004311740,-338.73597052,0.00021816,2]
[385747408,1758004311855,-161.26402948,0.00021816,2]
[385747409,1758004311886,-300.0,0.00021816,2]
[385747410,1758004311915,-500.0,0.00021816,2]
[385747411,1758004311946,-500.0,0.00021816,2]
[385747412,1758004311984,-500.0,0.00021816,2]
[385747413,1758004312016,-500.0,0.00021816,2]
[385747414,1758004312044,-500.0,0.00021816,2]
[385747415,1758004312075,-500.0,0.00021816,2]
[385747416,1758004312110,-500.0,0.00021816,2]
[385747417,1758004312138,-294.75552178,0.00021816,2]
[385747418,1758004312166,-500.0,0.00021816,2]
[385747419,1758004312196,-148.9615252,0.00021816,2]
[385747422,1758004363611,-5000.0,0.00021266,2]
[385747423,1758004363723,-200.0,0.00021481,2]
[385747424,1758004363884,9600.01,0.00021717,2]
[385747425,1758004363919,-400.0,0.00021717,2]
[385747426,1758004374832,2400.0,0.00021816,2]
[385747427,1758004378248,-365.26080407,0.00021816,2]
[385747428,1758004381973,-169.05899972,0.00021816,2]
[385747429,1758004382763,300.0,0.00021815,2]
[385747430,1758004384001,950.83134524,0.00021816,2]
[385747431,1758004385782,-155.45994058,0.00021816,2]
[385747432,1758004387733,-243.18141578,0.00021816,2]
[385747433,1758004389542,-240.67913411,0.00021816,2]
[385747434,1758004392071,-174.970133,0.00021816,2]
[385747435,1758004396459,-172.72673596,0.00021816,2]
[385747436,1758004398305,-191.13106353,0.00021816,2]
[385747437,1758004402338,537.11492658,0.00021816,2]
[385747438,1758004402717,-293.90784349,0.00021816,2]
[385747439,1758004404703,-254.68325408,0.00021816,2]
[385747440,1758004406483,-393.72357633,0.00021816,2]
[385747441,1758004410389,-168.300064,0.00021816,2]
[385747442,1758004411067,1272.63036435,0.00021816,2]
[385747443,1758004412821,-332.30512038,0.00021816,2]
[385747444,1758004416119,-167.33877011,0.00021816,2]
[385747445,1758004421705,-169.05899972,0.00021598,2]
[385747446,1758004422346,-3256.29295302,0.00021717,2]
[385747447,1758004422371,-10000.01,0.00021717,2]
[385747448,1758004422466,-10000.01,0.00021717,2]
[385747449,1758004431352,-839.53789394,0.000215,2]
[385747450,1758004431385,-8320.93421212,0.00021717,2]
[385747451,1758004431469,-2533.74433486,0.00021717,2]
[385747452,1758004441585,-196.91157007,0.00021816,2]
[385747453,1758004442848,300.0,0.00021815,2]
[385747454,1758004443853,-158.36320034,0.00021816,2]
[385747455,1758004445871,-431.86119454,0.00021816,2]
[385747456,1758004446083,4632.52133028,0.00021816,2]
[385747457,1758004446107,367.47866972,0.00021816,2]
[385747458,1758004448758,-163.27744421,0.00021816,2]
[385747459,1758004450287,273.889544,0.00020979,2]
[385747460,1758004453165,-300.50623051,0.00021816,2]
[385747461,1758004454956,5000.0,0.00021816,2]
[385747462,1758004457015,-166.5117253,0.00021816,2]
[385747463,1758004458883,-165.77456623,0.00021816,2]
[385747464,1758004463341,-440.13023696,0.00021816,2]
[385747465,1758004463927,4358.64178628,0.00021816,2]
[385747466,1758004463950,641.35821372,0.00021816,2]
[385747467,1758004465336,-166.66666667,0.00021816,2]
[385747468,1758004465389,166.080724,0.0001049,2]
[385747469,1758004465630,166.080724,0.00015734,2]
[385747470,1758004465830,166.080724,0.00020979,2]
[385747473,1758004466689,-156.68162977,0.00021816,2]
[385747478,1758004468107,-495.10764976,0.00021816,2]
[385747480,1758004471077,-587.84249265,0.00021816,2]
[385747481,1758004473438,-165.7745662,0.00021816,2]
[385747482,1758004473631,5000.0,0.00021816,2]
[385747483,1758004475834,-189.30466192,0.00021816,2]
[385747484,1758004477768,-512.76360136,0.00021816,2]
[385747485,1758004480080,-308.74400595,0.00021816,2]
[385747486,1758004482004,-8927.898284,0.00021816,2]
[385747487,1758004482161,-10000.01,0.00021816,2]
[385747488,1758004482525,-161.23327438,0.00021816,2]
[385747489,1758004501745,-5000.0,0.00021382,2]
[385747490,1758004501779,-0.01,0.00021598,2]
[385747491,1758004501898,-4999.99,0.00021598,2]
[385747492,1758004501937,-0.03,0.00021816,2]
[385747493,1758004521757,-5000.0,0.00021597,2]
[385747494,1758004521791,-0.01,0.00021815,2]
[385747495,1758004521871,-299.99,0.00021815,2]
[385747496,1758004521900,-266.0,0.00021815,2]
[385747497,1758004521928,-1200.0,0.00021815,2]
[385747498,1758004521956,-1468.06,0.00021816,2]
[385747499,1758004522024,-3531.91,0.00021816,2]
[385747500,1758004553918,-1484.65804942,0.00021168,2]
[385747501,1758004553947,-2030.69390116,0.00021382,2]
[385747502,1758004553986,-2969.30609884,0.00021382,2]
[385747503,1758004554094,-5000.0,0.00021598,2]
[385747504,1758004554128,-0.01,0.00021916,2]
[385747505,1758004554235,-10000.01,0.00021916,2]
[385747506,1758004561905,-4506.8290132,0.00021697,2]
[385747507,1758004561947,-986.3519736,0.0002172,2]
[385747508,1758004562052,-10000.01,0.0002172,2]
[385747509,1758004562181,-10000.01,0.0002172,2]
[385747510,1758004562295,-10000.01,0.0002172,2]
[385747511,1758004562421,-10000.01,0.0002172,2]
[385747512,1758004562558,-10000.01,0.0002172,2]
[385747513,1758004562688,-10000.01,0.0002172,2]
[385747514,1758004562855,-2467.3011413,0.0002172,2]
[385747515,1758004562883,-5065.4077174,0.0002172,2]
[385747518,1758004646998,-622.75455714,0.00020857,2]
[385747519,1758004647026,-1000.0,0.00020866,2]
[385747520,1758004647054,-155.531832,0.00021162,2]
[385747521,1758004647082,-233.61136257,0.00021258,2]
[385747522,1758004647113,-976.21449658,0.00021502,2]
[385747523,1758004647200,-4023.78550342,0.00021502,2]
[385747524,1758004647231,-204.24428535,0.00021716,2]
[385747525,1758004647259,-487.03621665,0.00021813,7]
[385747526,1758004647287,-1121.5306774,0.00021817,2]
[385747527,1758004647315,-300.0,0.00021915,2]
[385747528,1758004647455,-2355.51626264,0.00021916,2]
[385747529,1758004647484,-500.0,0.00021916,2]
[385747530,1758004647610,-63.35511592,0.00021916,2]
[385747531,1758004674032,-10000.01,0.00021817,2]
[385747532,1758004674135,-10000.01,0.00021817,2]
[385747533,1758004674251,-10000.01,0.00021817,2]
[385747534,1758004744292,-300.0,0.00020923,2]
[385747535,1758004744334,-9400.01,0.00020924,2]
[385747536,1758004744411,-10000.01,0.00020924,2]
[385747537,1758004744564,-2089.4328789,0.00020924,2]
[385747538,1758004744595,-821.1442422,0.00021384,2]
[385747539,1758004744629,-4178.8557578,0.00021384,2]
[385747540,1758004753734,-179.82183482,0.00021532,2]
[385747541,1758004813693,-414.52040148,0.00020916,2]
[385747542,1758004822312,-10000.01,0.00020916,2]
[385747543,1758004822434,-10000.01,0.00020916,2]
[385747544,1758004822559,-10000.01,0.00020916,2]
[385747545,1758004822698,-10000.01,0.00020916,2]
[385747546,1758004822852,-10000.01,0.00020916,2]
[385747547,1758004822984,-10000.01,0.00020916,2]
[385747548,1758004832628,-10000.01,0.00020916,2]
[385747549,1758004832668,-3986.41109808,0.00020916,2]
[385747550,1758004832690,-2027.18780384,0.00020916,2]
[385747551,1758004832700,-1117.09568264,0.00021532,2]
[385747552,1758004832709,-448.31240493,0.000216,2]
[385747553,1758004832718,-2421.00301051,0.00021817,2]
[385747554,1758004832732,-6013.59890192,0.00021817,2]
[385747555,1758004838057,-184.11073457,0.00021817,2]
[385747556,1758004839956,-228.42226009,0.00021817,2]
[385747557,1758004842502,-153.15883562,0.00021599,2]
[385747558,1758004846361,-266.27671976,0.00021599,2]
[385747559,1758004851087,-238.44442916,0.00021599,2]
[385747569,1758004876588,-173.39103018,0.00021169,2]
[385747582,1758004982297,158.0,8.3e-07,2]
[385747583,1758004984132,158.0,8.3e-07,2]
[385747584,1758004994154,158.0,8.3e-07,2]
[385747585,1758004996790,158.0,8.3e-07,2]
[385747586,1758004999770,158.0,8.3e-07,2]
[385747587,1758005001540,158.0,8.3e-07,2]
[385747588,1758005005303,158.0,8.3e-07,2]
[385747589,1758005038739,-249.36336092,0.00021169,2]
[385747590,1758005040178,-421.86793081,0.00021169,2]
[385747591,1758005073261,5000.0,0.00020526,2]
[385747592,1758005136178,5000.0,0.00020526,2]
[385747593,1758005168132,5000.0,0.00020526,2]
[385747594,1758005169768,-421.78233159,0.00020656,2]
[385747595,1758005170597,739.6424971,0.00020493,2]
[385747597,1758005186828,666.0,0.00020369,2]
[385747598,1758005203668,2524.88387808,0.00020526,2]
[385747599,1758005232598,10000.0,0.00020369,2]
[385747600,1758005245165,-300.0,0.00020655,2]
[385747601,1758005245185,-849.70532564,0.00020656,2]
[385747603,1758005257051,1689.29798316,0.00020526,2]
[385747606,1758005314320,5000.0,0.00020526,2]
[385747607,1758005331024,478.67503394,0.00027402,120]
[385747608,1758005343927,5000.0,0.00020526,2]
[385747610,1758005383679,5000.0,0.00020526,2]
[385747611,1758005404246,221.17325549,0.00020289,5]
[385747701,1758005438731,-1200.0,0.00020655,2]
[385747703,1758005438741,-300.0,0.00020655,2]
[385747705,1758005438750,-300.0,0.00020655,2]
[385747707,1758005438760,-300.0,0.00020655,2]
[385747709,1758005438770,-300.0,0.00020655,2]
[385747711,1758005438779,-25737.58546967,0.00020656,2]
[385747713,1758005438789,-500.0,0.00021311,2]
[385747715,1758005438799,-420.99699392,0.00021311,2]
[385747716,1758005438808,-500.0,0.00021311,2]
[385747717,1758005438818,-500.0,0.00021311,2]
[385747718,1758005438827,-500.0,0.00021311,2]
[385747719,1758005438837,-500.0,0.00021311,2]
[385747720,1758005438846,-500.0,0.00021311,2]
[385747721,1758005438856,-500.0,0.00021311,2]
[385747722,1758005438866,-500.0,0.00021311,2]
[385747723,1758005438874,-500.0,0.00021311,2]
[385747724,1758005438884,-500.0,0.00021311,2]
[385747725,1758005438893,-277.92439527,0.00021311,2]
[385747726,1758005438902,-500.0,0.00021311,2]
[385747727,1758005438912,-500.0,0.00021311,2]
[385747728,1758005438921,-500.0,0.00021311,2]
[385747729,1758005438930,-500.0,0.00021311,2]
[385747730,1758005438940,-500.0,0.00021311,2]
[385747731,1758005438949,-185.42859837,0.00021311,2]
[385747732,1758005439327,-314.57140163,0.00021311,2]
[385747733,1758005439336,-500.0,0.00021311,2]
[385747734,1758005439345,-2745.29762069,0.00021312,2]
[385747735,1758005439356,-3999.95594099,0.00021312,2]
[385747736,1758005439367,-3400.0,0.00021312,2]
[385747766,1758005440790,-2276.65000003,0.00021312,2]
[385747782,1758005441142,-0.00050207,0.00021312,2]
[385747797,1758005443860,-320.765848,0.00021312,2]
[385747810,1758005446966,-716.53931282,0.00021099,2]
[385747811,1758005446978,-4283.46068718,0.00021099,2]
[385747812,1758005446988,-4806.53931302,0.00021312,2]
[385747813,1758005447715,-619.67339358,0.00021312,2]
[385747816,1758005448558,150.5,0.0002191,120]
[385747817,1758005449015,150.5,0.000219,120]
[385747818,1758005449464,164.55,0.0002189,120]
[385747819,1758005468490,276.06493337,0.00027863,30]
[385747820,1758005468719,276.06493337,0.00028,30]
[385747821,1758005470211,168.300065,0.00010369,2]
[385747828,1758005474904,5000.0,0.00020526,2]
[385747829,1758005491737,5000.0,0.00020526,2]
[385747830,1758005515287,5000.0,0.00020526,2]
[385747831,1758005538591,5000.0,0.00019178,2]
[385747832,1758005549056,155.0,0.00024,120]
[385747833,1758005550533,155.0,0.000261,120]
[385747834,1758005551315,5000.0,0.00020526,2]
[385747835,1758005575632,208.15726345,0.000199,2]
[385747836,1758005579637,1000.0,0.00020431,2]
[385747837,1758005581730,5000.0,0.00020526,2]
[385747838,1758005610102,5000.0,0.00020526,2]
[385747839,1758005640511,5000.0,0.00020526,2]
[385747840,1758005662670,250.0,0.00019962,2]
[385747841,1758005670272,204.040966,0.00020245,2]
[385747842,1758005670494,303.12427154,0.00019723,2]
[385747843,1758005672839,152.0,0.00020526,2]
[385747844,1758005672867,4848.0,0.00020526,2]
[385747845,1758005702750,5000.0,0.00020526,2]
[385747846,1758005704637,480.0,0.00030169,50]
[385747847,1758005732574,5000.0,0.00020526,2]
[385747848,1758005734443,191.0,0.00021277,120]
[385747849,1758005735926,191.0,0.0002234,120]
[385747850,1758005767297,5000.0,0.00020526,2]
[385747852,1758005800916,2947.2359405,0.00020526,2]
[385747853,1758005843243,418.85573481,0.0002036,2]
[385747854,1758005891116,827.07375905,0.00020526,2]
[385747856,1758006059799,-159.57994242,0.00020639,2]
[385747857,1758006059828,-480.0,0.00020656,7]
[385747858,1758006059859,-168.300065,0.00020739,2]
[385747859,1758006059887,-644.190325,0.00020761,2]
[385747860,1758006059914,-300.0,0.00020988,2]
[385747861,1758006059941,-300.0,0.00020988,2]
[385747862,1758006059970,-300.0,0.00020988,2]
[385747863,1758006059997,-1200.0,0.00020989,2]
[385747864,1758006060029,-272.0,0.00020989,2]
[385747865,1758006060060,-1151.86933516,0.00020989,2]
[385747866,1758006060145,-48.13066484,0.00020989,2]